fUST/lending_fUST_20260226
["ID","MTS","AMOUNT","RATE_DAILY","PERIOD"]
[406691260,1772085032411,-261.05,0.000181,5]
[406691261,1772085032420,-744.71502317,0.00018153,2]
[406691262,1772085032430,-448.23928824,0.00018153,2]
[406691281,1772085038391,-240.76071176,0.00018153,2]
[406691282,1772085038401,-77.20200945,0.00018734,2]
[406691289,1772085038449,-117.52591821,0.00018734,2]
[406691291,1772085038459,-500.0,0.00018734,2]
[406691293,1772085038468,-201.93286099,0.00018734,2]
[406691295,1772085038477,-500.0,0.00018734,2]
[406691297,1772085038486,-1828.88127661,0.00018734,2]
[406691365,1772085041053,-750.29657322,0.00018734,2]
[406691367,1772085041063,-209.40437684,0.00018734,2]
[406691369,1772085041072,-97.66202225,0.00018734,2]
[406691543,1772085043467,-284.64068081,0.00018734,2]
[406691594,1772085043961,-17.21590606,0.00018734,2]
[406691596,1772085043971,-217.15233878,0.00018734,2]
[406691598,1772085043981,-225.18697532,0.00018734,2]
[406691600,1772085043990,-233.51889341,0.00018734,2]
[406691602,1772085044000,-242.15909246,0.00018734,2]
[406691604,1772085044009,-251.11897888,0.00018734,2]
[406691606,1772085044018,-260.4103811,0.00018734,2]
[406691608,1772085044027,-270.0455652,0.00018734,2]
[406691610,1772085044036,-280.03725112,0.00018734,2]
[406691612,1772085044045,-290.39862941,0.00018734,2]
[406691614,1772085044055,-301.1433787,0.00018734,2]
[406691616,1772085044065,-500.0,0.00018764,2]
[406691618,1772085044074,-200.0,0.00018805,4]
[406691621,1772085044083,-210.0214868,0.00018865,2]
[406691623,1772085044092,-1940.59423577,0.00019003,2]
[406691650,1772085044346,-500.0,0.00019003,2]
[406691652,1772085044357,-388.88955432,0.00019003,2]
[406691862,1772085046437,-75.30404076,0.00019003,2]
[406691866,1772085046460,-155.49859005,0.00019003,2]
[406691868,1772085046470,-300.0,0.00019107,2]
[406691870,1772085046479,-300.0,0.00019107,2]
[406691872,1772085046488,-300.0,0.00019107,2]
[406691874,1772085046497,-300.0,0.00019107,2]
[406691876,1772085046507,-300.0,0.00019107,2]
[406691878,1772085046516,-219.15703872,0.00019107,2]
[406691949,1772085082414,180.99981478,0.00014878,2]
[406691950,1772085083832,325.79966661,0.00017267,2]
[406691951,1772085605461,158.92,9.5e-05,2]
[406691952,1772085605985,158.92,9.8e-05,2]
[406691953,1772085606631,158.92,0.000101,2]
[406691954,1772085607581,158.92,0.000104,2]
[406691955,1772085643848,-473.88127943,0.0001314,2]
[406691956,1772085728251,1934.50514981,0.0001,2]
[406691957,1772085736624,290.62654428,0.0001,2]
[406691958,1772085746049,1000.0,0.0001,2]
[406691959,1772085752615,1043.3673973,0.0001,2]
[406691963,1772086031149,-159.70580373,0.0001275,2]
[406691964,1772086038116,-788.76781852,0.00012623,2]
[406691965,1772086048178,-1172.42032257,0.00012623,2]
[406691966,1772086048265,-2564.93057948,0.00012623,2]
[406691967,1772086048306,-4840.29419627,0.0001275,2]
[406691968,1772086048348,-205.15193052,0.00012922,2]
[406691969,1772086048387,-200.0,0.00012964,2]
[406691970,1772086048428,-300.0,0.00013139,2]
[406691971,1772086048465,-606.0,0.0001314,2]
[406691972,1772086048504,-318.50814793,0.00013273,2]
[406691973,1772086048545,-1200.0,0.00013401,2]
[406691974,1772086048589,-300.0,0.00013402,2]
[406691975,1772086048626,-300.0,0.00013402,2]
[406691976,1772086048666,-300.0,0.00013402,2]
[406691977,1772086048705,-300.0,0.00013402,2]
[406691978,1772086048745,-300.0,0.00013402,2]
[406691979,1772086048782,-300.0,0.00013402,2]
[406691980,1772086048821,-300.0,0.00013402,2]
[406691981,1772086048861,-300.0,0.00013402,2]
[406691982,1772086048901,-300.0,0.00013402,2]
[406691983,1772086048945,-300.0,0.00013402,2]
[406691984,1772086048986,-300.0,0.00013402,2]
[406691985,1772086049027,-300.0,0.00013402,2]
[406691986,1772086049068,-300.0,0.00013402,2]
[406691987,1772086049109,-300.0,0.00013402,2]
[406691988,1772086049153,-300.0,0.00013402,2]
[406691989,1772086049193,-600.0,0.00013669,2]
[406691990,1772086049231,-500.0,0.00013699,2]
[406691991,1772086049271,-190.557937,0.00014004,7]
[406691992,1772086049310,-1105.5525976,0.00014366,2]
[406691993,1772086049347,-474.0,0.00014741,2]
[406691994,1772086049383,-598.34696001,0.000149,2]
[406691995,1772086049421,-242.07927801,0.00014922,2]
[406691996,1772086049457,-947.1496824,0.00015,2]
[406691997,1772086049494,-386.85646863,0.00015,2]
[406691998,1772086049533,-720.0,0.00015036,2]
[406691999,1772086049570,-160.24000886,0.000156,2]
[406692000,1772086049608,-864.0,0.0001654,2]
[406692001,1772086049647,-158.95746701,0.0001658,2]
[406692002,1772086049684,-279.0066255,0.00016922,2]
[406692003,1772086049721,-500.0,0.00016934,2]
[406692004,1772086049758,-195.11821263,0.00017299,2]
[406692005,1772086049794,-500.0,0.00017299,2]
[406692006,1772086049835,-40.79010058,0.00017299,2]
[406692007,1772086146079,-164.81437677,0.00017199,2]
[406692008,1772086146099,-165.21243816,0.000173,2]
[406692009,1772086152305,-3221.62011712,0.000173,2]
[406692010,1772086152324,-10000.0,0.00017662,2]
[406692011,1772086152346,-500.0,0.00017999,2]
[406692012,1772086152367,-234.85122338,0.00017999,2]
[406692013,1772086152388,-500.0,0.00017999,2]
[406692014,1772086152409,-500.0,0.00017999,2]
[406692015,1772086152430,-18387.93351254,0.00018,2]
[406692016,1772086160214,-295.12051113,0.00018,2]
[406692017,1772086172095,-1617.98,0.00018,2]
[406692018,1772086174076,-727.60430106,0.00018,2]
[406692019,1772086205570,198.06,9.5e-05,2]
[406692020,1772086205886,198.06,0.0001,2]
[406692021,1772086206544,198.06,0.000104,2]
[406692073,1772086232469,-1242.13250532,0.00016,2]
[406692158,1772086238695,-4088.97028541,0.00016,2]
[406692244,1772086239531,-2282.38395469,0.00016,2]
[406692247,1772086239544,-38742.61101652,0.00016,2]
[406692383,1772086241059,-1138.54114521,0.00016,2]
[406692567,1772086243713,-11074.39,0.00016,2]
[406692568,1772086243826,-2149.33,0.00016,2]
[406692569,1772086243837,-484.19212185,0.00016,2]
[406692570,1772086243848,-1135.25505638,0.00016,2]
[406692571,1772086243884,-793.3533915,0.00016,2]
[406692572,1772086243929,-89.95392087,0.00016,2]
[406692599,1772086246686,-6802.71563423,0.00016,2]
[406692600,1772086246697,-494.293216,0.00016,2]
[406692601,1772086246944,-7591.32629997,0.00016,2]
[406692602,1772086805732,208.8,9.5e-05,2]
[406692603,1772086848710,1042.2,0.000204,120]
[406692608,1772087209532,1905.69157168,0.00012001,2]
[406692609,1772087217814,3083.98022702,0.00012001,2]
[406692610,1772087226196,5000.0,0.00012001,2]
[406692611,1772087237134,-204.84599807,0.00012203,2]
[406692612,1772087237154,-524.84428659,0.00012264,2]
[406692613,1772087245107,-675.15571341,0.00012264,2]
[406692614,1772087245138,-42.04620255,0.00012897,2]
[406692615,1772087352560,200.0,0.00020349,120]
[406692616,1772087360085,-560.95379745,0.00012897,2]
[406692617,1772087360107,-200.0,0.00012942,2]
[406692618,1772087360128,-500.0,0.00013699,2]
[406692619,1772087360149,-500.0,0.00013699,2]
[406692620,1772087360172,-300.0,0.00013831,2]
[406692621,1772087360196,-192.76124704,0.00013831,2]
[406692622,1772087360222,-227.9347622,0.00013831,2]
[406692623,1772087360246,-300.0,0.00013832,2]
[406692624,1772087360270,-300.0,0.00013832,2]
[406692625,1772087360295,-300.0,0.00013832,2]
[406692626,1772087360320,-300.0,0.00013832,2]
[406692627,1772087360345,-300.0,0.00013832,2]
[406692628,1772087360371,-300.0,0.00013832,2]
[406692629,1772087360394,-300.0,0.00013832,2]
[406692630,1772087360417,-300.0,0.00013832,2]
[406692631,1772087360441,-300.0,0.00013832,2]
[406692632,1772087360464,-300.0,0.00013832,2]
[406692633,1772087360487,-300.0,0.00013832,2]
[406692634,1772087360512,-300.0,0.00013832,2]
[406692635,1772087360536,-300.0,0.00013832,2]
[406692636,1772087360561,-300.0,0.00013832,2]
[406692637,1772087360584,-300.0,0.00013832,2]
[406692638,1772087360606,-26447.40372654,0.00013832,2]
[406692639,1772087360628,-163.2898194,0.00013866,2]
[406692640,1772087360649,-241.71827772,0.00014203,2]
[406692641,1772087360670,-511.6900305,0.00014953,2]
[406692642,1772087360692,-170.003294,0.00015068,2]
[406692643,1772087360713,-164.82332931,0.000159,2]
[406692644,1772087360738,-172.38,0.0001599,3]
[406692645,1772087360759,-581.55862674,0.00015999,2]
[406692646,1772087360781,-4053.91075858,0.00016,2]
[406692647,1772087361434,-15273.00818698,0.00016,2]
[406692648,1772087365083,-106479.01472671,0.00016,2]
[406692649,1772087368237,-3631.61777978,0.00016,2]
[406692650,1772087368278,-151.0,0.00016,2]
[406692651,1772087368320,-151.0,0.00016,2]
[406692652,1772087368362,-151.0,0.00016,2]
[406692653,1772087368402,-151.0,0.00016,2]
[406692654,1772087368442,-201.82044,0.00016,2]
[406692655,1772087368483,-267.68229135,0.00016203,2]
[406692701,1772087431859,-10.90826603,0.00016203,2]
[406692703,1772087431868,-655.0,0.00016203,2]
[406692705,1772087431878,-591.95762345,0.000164,2]
[406692726,1772087437863,-450.24237655,0.000164,2]
[406692728,1772087437874,-2206.0286985,0.0001643,2]
[406692730,1772087437884,-2546.7290132,0.00016449,2]
[406692732,1772087437894,-152.3626892,0.00016805,2]
[406692735,1772087437904,-200.0,0.00017059,3]
[406692761,1772087438151,-946.01956259,0.00018,2]
[406692764,1772087438174,-5827.23872123,0.00018,2]
[406692766,1772087438185,-5968.72615753,0.00018,2]
[406692768,1772087438197,-1677.61615989,0.00018,2]
[406692770,1772087438208,-756.41896135,0.00018,2]
[406692772,1772087438217,-151.0,0.00018,2]
[406692774,1772087438226,-151.0,0.00018,2]
[406692776,1772087438236,-151.0,0.00018,2]
[406692778,1772087438245,-151.0,0.00018,2]
[406692780,1772087438254,-151.0,0.00018,2]
[406692782,1772087438263,-151.0,0.00018,2]
[406692784,1772087438272,-166.363462,0.00018,2]
[406692786,1772087438281,-151.0,0.00018,2]
[406692788,1772087438290,-151.0,0.00018,2]
[406692790,1772087438299,-744.71502317,0.00018126,2]
[406692792,1772087438309,-292.17796285,0.00018138,2]
[406692794,1772087438318,-333.58375416,0.00018138,2]
[406692796,1772087438327,-186.24758553,0.00018138,2]
[406692798,1772087438336,-335.24565396,0.00018138,2]
[406692800,1772087438345,-315.46283703,0.00018203,2]
[406692802,1772087438354,-179.505,0.000183,2]
[406692804,1772087438363,-600.0,0.00018359,2]
[406692806,1772087438372,-715.0,0.000184,2]
[406692808,1772087438381,-403.0,0.000184,2]
[406692810,1772087438391,-180.18781949,0.000184,2]
[406692815,1772087438424,-399.01158781,0.000184,2]
[406692817,1772087438436,-166.05882401,0.000184,2]
[406692819,1772087438446,-1957.856,0.00018416,2]
[406692821,1772087438455,-63.19748697,0.00018416,2]
[406692869,1772087440339,-186.80251303,0.00018416,2]
[406692871,1772087440349,-644.79446246,0.00018416,2]
[406692873,1772087440359,-194.72792766,0.00018416,2]
[406692875,1772087440369,-201.93286099,0.00018416,2]
[406692877,1772087440379,-209.40437684,0.00018416,2]
[406692879,1772087440388,-217.15233878,0.00018416,2]
[406692881,1772087440399,-225.18697532,0.00018416,2]
[406692883,1772087440408,-233.51889341,0.00018416,2]
[406692885,1772087440418,-500.0,0.00018416,2]
[406692887,1772087440428,-242.15909246,0.00018416,2]
[406692890,1772087440437,-500.0,0.00018416,2]
[406692892,1772087440449,-500.0,0.00018416,2]
[406692893,1772087440458,-251.11897888,0.00018416,2]
[406692895,1772087440467,-260.4103811,0.00018416,2]
[406692897,1772087440476,-500.0,0.00018416,2]
[406692899,1772087440485,-270.0455652,0.00018416,2]
[406692901,1772087440495,-500.0,0.00018416,2]
[406692904,1772087440504,-280.03725112,0.00018416,2]
[406692906,1772087440514,-500.0,0.00018416,2]
[406692908,1772087440523,-290.39862941,0.00018416,2]
[406692909,1772087440532,-292.85909735,0.00018416,2]
[406693126,1772087442988,-207.14090265,0.00018416,2]
[406693127,1772087442999,-301.1433787,0.00018416,2]
[406693128,1772087443009,-2579.17784983,0.00018416,2]
[406693129,1772087443018,-533.88981491,0.00018416,2]
[406693130,1772087443027,-478.74241238,0.00018416,2]
[406693131,1772087443040,-21.25758762,0.00018416,2]
[406693132,1772087443050,-1029.25652381,0.00018471,2]
[406693139,1772087445828,-1001.04014819,0.00018471,2]
[406693140,1772087445838,-1507.92059062,0.00018526,2]
[406693141,1772087445848,-1375.24637941,0.00018551,2]
[406693142,1772087445858,-151.0,0.00018651,2]
[406693143,1772087445867,-151.0,0.00018651,2]
[406693144,1772087445877,-151.0,0.00018651,2]
[406693145,1772087445887,-151.0,0.00018651,2]
[406693146,1772087445896,-151.0,0.00018651,2]
[406693147,1772087445906,-151.0,0.00018651,2]
[406693148,1772087445916,-151.0,0.00018651,2]
[406693149,1772087445925,-151.0,0.00018651,2]
[406693150,1772087445935,-151.0,0.00018651,2]
[406693151,1772087445945,-313.27093661,0.00018865,5]
[406693152,1772087445955,-209.20734948,0.00018865,5]
[406693153,1772087445970,-403.0,0.00018884,2]
[406693154,1772087445979,-377.16232669,0.00018964,2]
[406693155,1772087488090,911.57158598,0.00014699,2]
[406693157,1772087835518,173.0,5.6e-07,2]
[406693158,1772087836615,173.0,5.6e-07,2]
[406693159,1772087837688,173.0,5.6e-07,2]
[406693160,1772087839385,173.0,5.6e-07,2]
[406693161,1772088005206,150.74,9.5e-05,2]
[406693162,1772088426093,-500.0,0.00013273,2]
[406693163,1772088426115,-608.0,0.00013273,2]
[406693164,1772088426137,-200.0,0.00013656,2]
[406693165,1772088426158,-1200.0,0.00013698,2]
[406693166,1772088426178,-462.67387266,0.00013699,2]
[406693167,1772088426201,-261.23972838,0.00013699,2]
[406693168,1772088426223,-500.0,0.00013699,2]
[406693169,1772088426243,-300.0,0.00013699,2]
[406693170,1772088426264,-300.0,0.00013699,2]
[406693171,1772088426284,-300.0,0.00013699,2]
[406693172,1772088426305,-300.0,0.00013699,2]
[406693173,1772088426324,-457.61,0.000137,2]
[406693174,1772088426347,-457.61,0.000137,2]
[406693175,1772088426366,-457.61,0.000137,2]
[406693176,1772088426387,-457.61,0.000137,2]
[406693177,1772088426409,-457.61,0.000137,2]
[406693178,1772088426428,-457.61,0.000137,2]
[406693179,1772088426448,-457.61,0.000137,2]
[406693180,1772088426469,-457.61,0.000137,2]
[406693181,1772088426488,-457.61,0.000137,2]
[406693182,1772088426508,-457.61,0.000137,2]
[406693183,1772088426527,-457.67,0.000137,2]
[406693184,1772088426547,-1000.0,0.00013821,2]
[406693185,1772088426567,-500.0,0.00013831,2]
[406693186,1772088426585,-500.0,0.00013831,2]
[406693187,1772088426604,-1500.0,0.00014368,2]
[406693188,1772088426622,-2136.961236,0.00014651,2]
[406693189,1772088426642,-179.941096,0.00014681,2]
[406693190,1772088426661,-911.57158598,0.00014699,2]
[406693191,1772088426681,-2000.0,0.00014916,2]
[406693192,1772088426701,-300.0,0.00014934,2]
[406693193,1772088426723,-500.0,0.00014999,2]
[406693194,1772088426745,-500.0,0.00014999,2]
[406693195,1772088426768,-500.0,0.00014999,2]
[406693196,1772088426790,-500.0,0.00014999,2]
[406693197,1772088426811,-500.0,0.00014999,2]
[406693198,1772088426836,-165.52087408,0.00014999,2]
[406693199,1772088426860,-500.0,0.00014999,2]
[406693200,1772088426883,-500.0,0.00014999,2]
[406693201,1772088426905,-471.43959577,0.00014999,2]
[406693202,1772088426929,-500.0,0.00014999,2]
[406693203,1772088426953,-500.0,0.00014999,2]
[406693204,1772088426975,-336.52272357,0.00014999,2]
[406693205,1772088426993,-10000.0,0.00015,2]
[406693206,1772088427012,-3732.0,0.00015,2]
[406693207,1772088427034,-420.0,0.00015013,2]
[406693208,1772088427054,-282.1851143,0.0001506,2]
[406693209,1772088427075,-1253.0,0.00015068,2]
[406693210,1772088427097,-221.32236507,0.00015273,2]
[406693211,1772088427118,-500.0,0.00015273,2]
[406693212,1772088427137,-179.941096,0.00015454,2]
[406693213,1772088427158,-500.0,0.00015464,2]
[406693214,1772088427179,-500.0,0.00015547,2]
[406693215,1772088427200,-500.0,0.00015821,2]
[406693216,1772088427220,-500.0,0.00015999,2]
[406693217,1772088427241,-500.0,0.00015999,2]
[406693218,1772088427263,-500.0,0.00015999,2]
[406693219,1772088427284,-500.0,0.00015999,2]
[406693220,1772088427303,-500.0,0.00015999,2]
[406693221,1772088427324,-500.0,0.00015999,2]
[406693222,1772088427347,-10000.0,0.00016,2]
[406693223,1772088427370,-179.941096,0.00016226,2]
[406693224,1772088427391,-587.0,0.00016452,2]
[406693225,1772088427411,-179.941096,0.00016999,2]
[406693226,1772088427430,-255.08340381,0.00017273,2]
[406693227,1772088427449,-500.0,0.00017534,2]
[406693228,1772088427470,-179.941096,0.00017771,2]
[406693229,1772088427490,-190.783,0.00017984,2]
[406693230,1772088427512,-823.0,0.0001803,2]
[406693231,1772088427532,-222.03383937,0.00018158,2]
[406693232,1772088427553,-500.0,0.00018183,2]
[406693233,1772088427573,-2579.17784983,0.00018183,2]
[406693234,1772088427594,-500.0,0.00018183,2]
[406693235,1772088427616,-500.0,0.00018183,2]
[406693236,1772088427636,-500.0,0.00018183,2]
[406693237,1772088427810,-500.0,0.00018183,2]
[406693238,1772088427832,-500.0,0.00018183,2]
[406693239,1772088427853,-500.0,0.00018183,2]
[406693240,1772088427873,-500.0,0.00018183,2]
[406693241,1772088427895,-500.0,0.00018183,2]
[406693242,1772088427916,-421.93862661,0.00018183,2]
[406693243,1772088427937,-291.48953087,0.00018183,2]
[406693244,1772088427961,-194.72792766,0.00018183,2]
[406693245,1772088427984,-201.93286099,0.00018183,2]
[406693246,1772088428008,-209.40437684,0.00018183,2]
[406693247,1772088428032,-217.15233878,0.00018183,2]
[406693248,1772088428056,-225.18697532,0.00018183,2]
[406693249,1772088428080,-233.51889341,0.00018183,2]
[406693250,1772088428104,-242.15909246,0.00018183,2]
[406693251,1772088428127,-251.11897888,0.00018183,2]
[406693252,1772088428147,-563.13996512,0.00018183,2]
[406693253,1772088428169,-260.4103811,0.00018183,2]
[406693254,1772088428193,-270.0455652,0.00018183,2]
[406693255,1772088428219,-280.03725112,0.00018183,2]
[406693256,1772088428242,-290.39862941,0.00018183,2]
[406693257,1772088428267,-301.1433787,0.00018183,2]
[406693258,1772088428287,-151.0,0.00018184,2]
[406693259,1772088428306,-1000.0,0.000183,2]
[406693260,1772088428328,-500.0,0.00018399,2]
[406693261,1772088428352,-704.0,0.000184,2]
[406693262,1772088428373,-174.39484174,0.00018416,2]
[406693263,1772088428393,-313.91071513,0.00018416,2]
[406693264,1772088428414,-568.10452323,0.00018416,2]
[406693265,1772088428434,-1022.58814181,0.00018416,2]
[406693266,1772088428453,-269.44880582,0.00018416,2]
[406693267,1772088428474,-307.94149237,0.00018416,2]
[406693268,1772088428496,-453.49464114,0.00018479,2]
[406693269,1772088428517,-394.78877,0.0001848,2]
[406693270,1772088428537,-23206.28288669,0.0001848,2]
[406693271,1772088440084,-798.26667954,0.0001848,2]
[406693272,1772088446090,-309.85938117,0.0001848,2]
[406693273,1772088450112,-1184.32258125,0.0001848,2]
[406693278,1772088606191,366.40762509,0.00013273,2]
[406693279,1772088606215,142.51961738,0.00013273,2]
[406693328,1772088632323,-204.911191,0.00018184,2]
[406693330,1772088632335,-689.0,0.00018184,2]
[406693332,1772088632346,-744.71502317,0.00018473,2]
[406693334,1772088632356,-300.0,0.00018479,2]
[406693336,1772088632367,-2831.09797738,0.0001848,2]
[406693355,1772088632559,-3180.04749012,0.0001848,2]
[406693405,1772088639253,-934.51109535,0.0001848,2]
[406693406,1772088639263,-151.0,0.0001848,2]
[406693407,1772088639272,-151.0,0.0001848,2]
[406693408,1772088639282,-200.0,0.00018538,4]
[406693409,1772088639292,-1375.86428195,0.00018793,2]
[406693410,1772088639303,-442.07019238,0.00018793,2]
[406693411,1772088639316,-447.37,0.000188,5]
[406693412,1772088639326,-175.07303984,0.00018865,5]
[406693413,1772088639335,-164.53756946,0.00018865,5]
[406693414,1772088639344,-715.0,0.00018884,2]
[406693415,1772088639355,-201.83,0.000189,5]
[406693416,1772088639364,-194.72792766,0.00018989,2]
[406693417,1772088639373,-178.42240288,0.00018989,2]
[406693418,1772088639463,-23.51045811,0.00018989,2]
[406693419,1772088639472,-108.08093981,0.00018989,2]
[406693420,1772088639497,-101.32343703,0.00018989,2]
[406693421,1772088639506,-217.15233878,0.00018989,2]
[406693422,1772088639516,-225.18697532,0.00018989,2]
[406693423,1772088639525,-233.51889341,0.00018989,2]
[406693424,1772088639729,-242.15909246,0.00018989,2]
[406693425,1772088639743,-251.11897888,0.00018989,2]
[406693426,1772088639752,-260.4103811,0.00018989,2]
[406693427,1772088639762,-270.0455652,0.00018989,2]
[406693428,1772088639772,-280.03725112,0.00018989,2]
[406693429,1772088639781,-290.39862941,0.00018989,2]
[406693430,1772088639791,-154.01488732,0.00018989,2]
[406693431,1772088639836,-147.12849138,0.00018989,2]
[406693432,1772088639846,-105.89004299,0.00018989,2]
[406693438,1772088640496,-2473.28780684,0.00018989,2]
[406693439,1772088640506,-7628.04289571,0.00019,2]
[406693440,1772088640516,-180.31553021,0.00019,2]
[406693441,1772088640525,-715.0,0.0001904,2]
[406693442,1772088640535,-403.0,0.0001904,2]
[406693443,1772088640544,-500.0,0.00019067,2]
[406693444,1772088640554,-219.04884397,0.00019067,2]
[406693445,1772088640563,-181.71038312,0.00019067,2]
[406693446,1772088640572,-159.66403459,0.00019067,2]
[406693447,1772088640581,-1947.21657944,0.00019068,2]
[406693448,1772088640591,-151.0,0.00019077,2]
[406693449,1772088640601,-2181.0,0.00019077,2]
[406693450,1772088640610,-1386.0,0.00019077,2]
[406693451,1772088640619,-221.15,0.000191,7]
[406693452,1772088640628,-598.8276,0.00019168,2]
[406693453,1772088640638,-598.8276,0.00019168,2]
[406693454,1772088640647,-598.8276,0.00019168,2]
[406693455,1772088640656,-500.0,0.00019178,2]
[406693456,1772088640666,-500.0,0.00019178,2]
[406693457,1772088640675,-500.0,0.00019178,2]
[406693458,1772088640684,-297.12212774,0.00019178,2]
[406693459,1772088640694,-288.84444255,0.00019273,2]
[406693460,1772088640704,-151.0,0.00019336,2]
[406693461,1772088640713,-192.86,0.00019336,2]
[406693462,1772088640723,-403.0,0.0001936,2]
[406693463,1772088640731,-600.0,0.00019379,2]
[406693464,1772088640740,-2674.60743027,0.00019537,2]
[406693465,1772088640750,-665.15676174,0.000196,2]
[406693466,1772088640759,-513.3,0.00019602,2]
[406693467,1772088640769,-1291.35399174,0.00019629,5]
[406693469,1772088641711,-811.36837899,0.00019629,5]
[406693470,1772088641721,-194.08678822,0.00019629,5]
[406693471,1772088641731,-170.003294,0.00019635,2]
[406693472,1772088641740,-403.0,0.0001968,2]
[406693473,1772088641749,-715.0,0.0001968,2]
[406693474,1772088641759,-403.0,0.0001968,2]
[406693475,1772088641768,-403.0,0.0001968,2]
[406693476,1772088641778,-403.0,0.0001968,2]
[406693477,1772088641787,-441.0992796,0.00019744,2]
[406693478,1772088641796,-500.0,0.00019752,2]
[406693479,1772088641806,-441.09927957,0.00019783,2]
[406693480,1772088641816,-6145.64856398,0.000198,2]
[406693481,1772088641836,-1002.32111584,0.000198,2]
[406693482,1772088641845,-2260.04879944,0.000198,2]
[406693483,1772088641854,-151.0,0.000198,2]
[406693484,1772088641864,-441.09927957,0.00019822,2]
[406693485,1772088641873,-715.0,0.00019844,2]
[406693486,1772088641882,-160.388742,0.00019844,2]
[406693487,1772088641891,-441.09927957,0.00019861,2]
[406693488,1772088641901,-441.09927957,0.000199,2]
[406693489,1772088641911,-151.0,0.000199,2]
[406693490,1772088641920,-379.85885971,0.00019932,2]
[406693491,1772088641930,-317.4462488,0.00019999,2]
[406693492,1772088641940,-24211.43471691,0.0002,2]
[406693496,1772088643131,-11238.97495803,0.0002,2]
[406693497,1772088643143,-41628.30438515,0.0002,2]
[406693498,1772088643155,-125730.15788518,0.0002,2]
[406693499,1772088643200,-1600.061056,0.0002,2]
[406693500,1772088643375,-2468.97068766,0.0002,2]
[406693509,1772088646159,-4209.8363154,0.0002,2]
[406693510,1772088646237,-33059.18492232,0.0002,2]
[406693511,1772088646288,-34.42882013,0.0002,2]
[406693512,1772088646560,-7591.33394697,0.0002,2]
[406693513,1772088723204,375.21834256,0.00013699,2]
[406693514,1772088723225,126.965369,0.00013699,2]
[406693515,1772088723345,158.42404385,0.00013699,2]
[406693516,1772088724644,24.31883275,0.00013699,2]
[406693517,1772088724666,490.0,0.00013699,2]
[406693518,1772088886399,4115.29,0.00012001,2]
[406693521,1772089236530,1424.56935868,0.00012001,2]
[406693522,1772089252292,5000.0,0.00012001,2]
[406693523,1772089328432,191.9936613,0.0001,2]
[406693525,1772089352783,522.3936,0.00012001,2]
[406693535,1772089679969,215.4,9.99e-05,2]
[406693536,1772089680293,215.4,9.99e-05,2]
[406693537,1772089748162,-10000.0,0.00012087,2]
[406693538,1772089748193,-300.0,0.00012161,2]
[406693539,1772089748229,-184.74342926,0.00012162,2]
[406693540,1772089748262,-593.0,0.00012238,2]
[406693541,1772089748294,-598.0412381,0.00012362,2]
[406693542,1772089748326,-200.0,0.00012474,2]
[406693543,1772089748358,-1200.0,0.00013172,2]
[406693544,1772089748393,-33543.57387163,0.00013262,2]
[406693545,1772089751099,-4318.33535358,0.00013262,2]
[406693546,1772089751122,-300.0,0.00013262,2]
[406693547,1772089751142,-200.36688811,0.00013273,2]
[406693548,1772089751163,-542.69730543,0.00013273,2]
[406693549,1772089751183,-500.6339296,0.00013273,2]
[406693550,1772089751202,-500.0,0.00013273,2]
[406693551,1772089751224,-500.0,0.00013273,2]
[406693552,1772089751246,-470.10045035,0.00013273,2]
[406693553,1772089751265,-500.0,0.00013273,2]